[Event "Mongolian Championship Open 2022"]
[Site "Chingis Khentii"]
[Date "2022.05.20"]
[Round "8.1"]
[White "Batchuluun, Tsegmed"]
[Black "Batsuren, Dambasuren"]
[Result "0-1"]
[ECO "E11"]
[WhiteElo "2536"]
[BlackElo "2501"]
[Annotator "TA"]
[PlyCount "168"]
[EventDate "2022.05.12"]
[EventType "tourn"]
[EventCountry "MGL"]
[SourceTitle "playchess.com"]
[Source "ChessBase"]
[SourceQuality "1"]
[TimeControl "40/5400+30:1800+30"]

{[%evp 12,168,17,0,32,28,35,41,43,47,41,9,18,14,18,24,23,12,26,16,29,14,17,17,12,21,39,35,32,20,19,14,10,8,33,0,0,0,0,0,0,0,0,0,0,0,0,-19,-21,-198,-174,-197,-197,-196,-197,-196,-197,-202,-198,-199,-202,-205,-199,-237,-231,-339,-324,-315,-307,-318,-292,-530,-292,-537,-522,-508,-470,-1484,-1404,-7002,-875,-731,-536,-7009,-6974,-6919,-6863,-6845,-6720,-6332,-5893,-650,-414,-6514,-6553,-5923,-5918,-5753,-5477,-4818,-4741,-3714,-3496,-29950,-29950,-5595,-5846,-3618,-1689,-29959,-29961,-29951,-29948,-29957,-29955,-29961,-29966,-29969,-29971,-29973,-4936,-29974,-29975,-29979,-29977,-29980,-29981,-29981,-29982,-29983,-29984,-29984,-29985,-29985,-29983,-29984,-29985,-29985,-29986,-29986,-29983,-29984,-29985,-29988,-29986,-29988,-29989,-29990,-29989,-29989,-29987,-29987,-29988,-29988,-29989,-29992,-29993,-29995,-29993]} 1. d4 {[%emt 0:00:06]} Nf6 {[%emt 0:00:30]} 2. c4 {[%emt 0:00:06]} e6 {[%emt 0:00:07]} 3. g3 {[%emt 0:00:08]} d5 {[%emt 0:00:05]} 4. Nf3 {[%emt 0:00:06]} Bb4+ {[%emt 0:00:12]} 5. Bd2 {[%emt 0:00:06]} a5 {[%emt 0:00:06]} 6. Bg2 {[%emt 0:00:10]} O-O {[%emt 0:00:09]} 7. Qc2 {[%emt 0:00:41]} c5 {[%emt 0:00:20] E11: Bogo-Indian.} 8. cxd5 {[%emt 0:00:36] The main line 8.cxd5 scores better than 8.dxc5.} cxd4 {[%emt 0:00:06]} 9. Nxd4 {[%emt 0:00:50]} Qb6 {[%emt 0:00:06] White is slightly better.} 10. e3 {[%emt 0:00:12]} exd5 {[%emt 0:00:05]} 11. a3 {[%emt 0:01:18]} Bxd2+ {[%emt 0:02:29]} 12. Nxd2 {[%emt 0:00:08]} (12. Kxd2 Nc6 13. Nxc6 bxc6 $17) 12... Nc6 {[%emt 0:00:55]} 13. N2f3 {[%emt 0:00:06]} Bg4 {[%emt 0:01:05]} 14. O-O {[%emt 0:00:22]} Rac8 {[%emt 0:01:20]} 15. Qd3 {[%emt 0:00:08]} Ne4 {[%emt 0:01:14] [#]} 16. Qb3 $146 {[%emt 0:00:17]} ({Predecessor:} 16. Rab1 Bh5 17. Bh3 Nxd4 18. Nxd4 Rc5 19. b4 Rc3 20. Qb5 Qxb5 21. Nxb5 Rc4 22. Rb2 axb4 23. axb4 {½-½ (28) Wojtaszek,R (2717)-Huschenbeth,N (2605) Warsaw 2020}) 16... Qxb3 {[%emt 0:03:29]} 17. Nxb3 {[%emt 0:00:08]} Bxf3 {[%emt 0:04:12]} 18. Bxf3 {[%emt 0:00:08]} Ne5 {[%emt 0:14:18]} 19. Bxe4 {[%emt 0:11:20]} dxe4 {[%emt 0:00:14]} 20. Nxa5 {[%emt 0:00:02][%cal Bb3a5,Ba5b7,Bb7d6,Bd6b5,Bb5d4][%mdl 32]} b6 {[%emt 0:00:16]} 21. Nb7 {[%emt 0:02:51]} Rc2 {[%emt 0:07:22]} 22. b4 {[%emt 0:10:15]} Nd3 {[%emt 0:02:29]} 23. Nd6 {[%emt 0:05:51]} f5 {[%emt 0:00:10]} 24. Nb5 {[%emt 0:01:09]} g6 {[%emt 0:00:53]} 25. Nd4 {[%emt 0:08:33]} Rb2 {[%emt 0:00:14]} 26. Rfb1 {[%emt 0:24:48]} Rxf2 {[%emt 0:02:57]} 27. a4 {[%emt 0:00:05]} g5 {[%emt 0:05:17]} 28. a5 {[%emt 0:23:26]} f4 {[%emt 0:01:34]} 29. gxf4 {[%emt 0:00:51]} gxf4 {[%emt 0:00:16]} 30. exf4 $2 {[%emt 0:00:37] Loses the game.} (30. Rf1 $1 $11 fxe3 31. axb6) 30... Kh8 $1 $19 {[%emt 0:05:57] Hoping for ...Rg8+.} (30... R8xf4 31. h3 (31. axb6 Rg4+ 32. Kh1 Rfg2 $11) 31... Rf6 32. a6 Rg6+ 33. Kh1 $11) 31. Kh1 {[%emt 0:07:03]} (31. axb6 {is a self mate.} Rg8+ 32. Kh1 Rfg2) 31... Rd2 $1 {[%emt 0:06:12] aiming for ...Rg8.} 32. axb6 {[%emt 0:03:02]} Rg8 $1 {[%emt 0:00:32][%cal Rd3f2]} 33. Rf1 {[%emt 0:00:08]} e3 {[%emt 0:04:10] ...e2 is the strong threat.} 34. b7 {[%emt 0:00:21]} e2 {[%emt 0:02:06]} 35. Nxe2 {[%emt 0:00:14]} Rxe2 {[%emt 0:00:06]} 36. h3 {[%emt 0:00:36]} (36. Ra8 $2 {gets mated.} Nf2+ 37. Rxf2 Re1+) 36... Re7 {[%emt 0:00:43]} 37. Rf3 {[%emt 0:01:10]} Nxb4 {[%emt 0:00:20]} 38. Ra7 {[%emt 0:01:32]} (38. Rb1 $142 Rxb7 39. Rfb3) 38... Rb8 {[%emt 0:01:23]} 39. Rb3 {[%emt 0:00:00]} Rexb7 {[%emt 0:00:16]} ({Not} 39... Rbxb7 $2 40. Rxb7 Rxb7 41. Rb2 $19) 40. Rxb7 {[%emt 0:00:00]} Rxb7 {[%emt 0:00:00][%mdl 4096] Endgame KRN-KR} 41. Kg2 $2 {[%emt 0:00:15]} (41. Rb1 {was called for.}) 41... Kg7 {[%emt 0:00:19] Threatens to win with ...Rb6.} 42. Kf3 $2 {[%emt 0:00:05]} (42. Rb2 {keeps fighting.}) 42... Rb6 {[%emt 0:00:51]} 43. Ke4 {[%emt 0:01:27]} Kf6 {[%emt 0:00:22]} 44. Kf3 {[%emt 0:12:38]} (44. Rg3 $142 Nc6 45. Rg5) 44... Kf5 {[%emt 0:00:18]} 45. Ra3 {[%emt 0:01:21]} Nd5 {[%emt 0:00:39]} (45... Ra6 $142 46. Re3 Ra5) 46. Kg3 {[%emt 0:01:23]} Rg6+ {[%emt 0:00:10]} 47. Kf3 {[%emt 0:01:07]} Rc6 {[%emt 0:00:06] ( -> ...Rc3+)} 48. Ra5 {[%emt 0:00:48]} Rc3+ {[%emt 0:00:42]} 49. Ke2 {[%emt 0:02:23] [#]} Ke6 $1 {[%emt 0:00:08]} 50. Ra6+ {[%emt 0:00:21]} Kf7 {[%emt 0:00:10]} 51. Ra7+ {[%emt 0:00:42]} Ne7 {[%emt 0:00:17]} 52. Kf2 {[%emt 0:00:25]} (52. h4 $142) 52... Rxh3 {[%emt 0:00:07]} 53. Kg2 {[%emt 0:00:02]} Rc3 {[%emt 0:00:27]} 54. Kf2 {[%emt 0:00:32]} Kf6 {[%emt 0:00:37]} 55. Ra6+ {[%emt 0:00:24]} Rc6 {[%emt 0:00:13]} 56. Ra7 {[%emt 0:00:08]} h5 {[%emt 0:02:52] Strongly threatening ...Nf5.} 57. Ra5 {[%emt 0:01:39]} Nf5 {[%emt 0:00:07]} 58. Ra8 {[%emt 0:00:17]} Rc2+ {[%emt 0:02:38]} 59. Kf3 {[%emt 0:00:06]} Rc3+ {[%emt 0:00:04]} 60. Kf2 {[%emt 0:00:23]} Nd4 {[%emt 0:00:23]} 61. Rh8 {[%emt 0:01:01]} Kg6 {[%emt 0:00:42]} 62. Rg8+ {[%emt 0:03:31]} Kh7 {[%emt 0:00:19]} 63. Rd8 {[%emt 0:01:08]} Rf3+ {[%emt 0:00:22]} 64. Kg2 {[%emt 0:00:05]} Rxf4 {[%emt 0:00:07]} 65. Kg3 {[%emt 0:00:05]} Rg4+ {[%emt 0:00:21]} (65... Ne6 $142 66. Rd6 h4+ 67. Kh3 Ng5+ 68. Kg2 Rg4+ 69. Kf2 Ne4+ 70. Kf3 Nxd6 71. Kxg4 {[#]} Nf5 $1 {[%mdl 512]} 72. Kh3 Kg6 73. Kg4 Kf6 74. Kf3 Kg5 75. Kg2 Kg4 76. Kh1 Kg3 77. Kg1 Ne3 78. Kh1 h3 79. Kg1 Nd1 80. Kf1 h2 81. Ke1 h1=Q+ 82. Kd2 Qd5+ 83. Kc1 Kf3 84. Kc2 Ke2 85. Kc1 Qd2+ 86. Kb1 Qb2#) 66. Kh3 {[%emt 0:00:07]} Ne6 {[%emt 0:01:00] Black mates.} 67. Rd6 {[%emt 0:00:43]} Ng5+ {[%emt 0:01:04]} 68. Kh2 {[%emt 0:00:06]} h4 {[%emt 0:00:06][%cal Bh5h4,Bh4h3][%mdl 32]} 69. Kh1 {[%emt 0:00:34]} Re4 {[%emt 0:02:31]} 70. Ra6 {[%emt 0:00:28]} h3 {[%emt 0:00:45]} 71. Kh2 {[%emt 0:02:05]} Re2+ {[%emt 0:00:08]} 72. Kh1 {[%emt 0:00:05]} Re6 {[%emt 0:00:22]} 73. Ra3 {[%emt 0:01:13]} Kg6 {[%emt 0:00:07]} 74. Kh2 {[%emt 0:00:14]} Re2+ {[%emt 0:00:19]} 75. Kh1 {[%emt 0:00:04]} Re4 {[%emt 0:00:37]} 76. Kh2 {[%emt 0:00:08]} Kh5 {[%emt 0:00:07]} 77. Kh1 {[%emt 0:01:37]} Kh4 {[%emt 0:00:42]} 78. Kh2 {[%emt 0:00:37]} Re2+ {[%emt 0:00:27]} 79. Kh1 {[%emt 0:00:10]} Rf2 {[%emt 0:02:19]} 80. Kg1 {[%emt 0:01:22]} Rf3 {[%emt 0:00:34]} 81. Ra2 {[%emt 0:01:08]} Ne4 {[%emt 0:00:10]} 82. Rb2 {[%emt 0:02:18]} Nf6 {[%emt 0:00:16]} 83. Rb1 {[%emt 0:01:22]} Ng4 {[%emt 0:00:13]} 84. Kh1 {[%emt 0:00:07]} Rf2 {[%emt 0:00:05] Weighted Error Value: White=0.55/Black=0.27 (precise)} 0-1

[Event "Mongolian Championship Open 2022"]
[Site "Chingis Khentii"]
[Date "2022.05.20"]
[Round "8.2"]
[White "Battulga, Namkhai"]
[Black "Bilguun, Sumiya"]
[Result "1/2-1/2"]
[ECO "A31"]
[WhiteElo "2402"]
[BlackElo "2454"]
[Annotator "TA"]
[PlyCount "86"]
[EventDate "2022.05.12"]
[EventType "tourn"]
[EventCountry "MGL"]
[SourceTitle "playchess.com"]
[Source "ChessBase"]
[SourceQuality "1"]
[TimeControl "40/5400+30:1800+30"]

{[%evp 30,86,43,34,47,41,61,77,94,110,93,82,86,85,121,91,206,206,171,103,109,104,112,104,191,198,195,193,218,197,228,-340,208,92,95,84,94,98,211,54,55,56,56,54,54,54,56,54,62,62,59,0,86,0,68,0,91,0,41]} 1. e4 {[%emt 0:00:02]} c5 {[%emt 0:00:08]} 2. Nf3 {[%emt 0:00:06]} e6 {[%emt 0:00:04]} 3. d4 {[%emt 0:00:05]} cxd4 {[%emt 0:00:04]} 4. Nxd4 {[%emt 0:00:04]} a6 {[%emt 0:00:05]} 5. c4 {[%emt 0:00:17]} Nf6 {[%emt 0:01:19]} 6. Nc3 {[%emt 0:00:08]} Qc7 {[%emt 0:00:09]} 7. a3 {[%emt 0:00:34]} b6 {[%emt 0:00:29]} 8. Be3 {[%emt 0:01:22]} Bb7 {[%emt 0:00:10]} 9. f3 {[%emt 0:00:10]} d6 {[%emt 0:00:31]} 10. Be2 {[%emt 0:00:23]} Nbd7 {[%emt 0:00:27]} 11. O-O {[%emt 0:03:05]} Be7 {[%emt 0:01:29]} 12. Rc1 {[%emt 0:17:52]} O-O {[%emt 0:01:59]} 13. b4 {[%emt 0:02:28]} Rac8 {[%emt 0:07:06]} 14. Nb3 {[%emt 0:06:14]} Qb8 {[%emt 0:00:13]} 15. Qd2 {[%emt 0:11:31]} Bd8 {[%emt 0:09:12]} 16. Rfd1 {[%emt 0:04:38]} Ne5 {[%emt 0:12:28] A31: Symmetrical English: 2 Nf3 Nf6 3 d4.} 17. Na4 {[%emt 0:16:31] [#]} d5 $146 {[%emt 0:08:40]} ({Predecessor:} 17... b5 18. cxb5 Rxc1 19. Qxc1 axb5 20. Nc3 d5 21. exd5 Bxd5 22. Nxd5 Nxd5 23. Bc5 Bb6 24. Kh1 {1-0 (46) Balla,T (2381)-Rachela,M (2364) Hungary 2012}) 18. exd5 {[%emt 0:03:43]} exd5 {[%emt 0:00:28] White is better.} 19. c5 {[%emt 0:00:34]} ({Reject} 19. Nxb6 $6 Bxb6 20. Bxb6 dxc4 $11) (19. Bxb6 $6 dxc4 20. Nd4 Re8 $11) (19. cxd5 $6 Rxc1 20. Rxc1 Nxd5 $11) 19... b5 {[%emt 0:08:13]} 20. Nb6 {[%emt 0:04:06]} Bxb6 {[%emt 0:01:45]} 21. cxb6 {[%emt 0:00:02]} Nc4 {[%emt 0:00:32]} 22. Bxc4 {[%emt 0:05:56]} bxc4 {[%emt 0:01:53]} (22... dxc4 $16 23. Nc5 Rfd8) 23. Bf4 $18 {[%emt 0:02:55]} Qa8 {[%emt 0:00:08]} 24. Nc5 {[%emt 0:00:20]} ({Better is} 24. Nd4 $18) 24... Rc6 $16 {[%emt 0:02:13]} 25. Bc7 {[%emt 0:04:50]} Qc8 {[%emt 0:03:24]} 26. Qd4 {[%emt 0:00:57] White is much more active. The black rooks are badly placed.} Nd7 {[%emt 0:08:02]} (26... Ne8 $16) 27. Nxd7 $18 {[%emt 0:06:09]} Qxd7 {[%emt 0:00:07] [#]} 28. Rxc4 $3 {[%emt 0:00:10][%mdl 512]} Re6 {[%emt 0:03:06]} (28... Rxc4 29. Qxc4) 29. Rcc1 {[%emt 0:04:45]} Qb5 {[%emt 0:05:43]} 30. Qd3 $4 {[%emt 0:01:49][%mdl 8192] [#]} (30. Rc5 $18 Qa4 31. Ra1) 30... Qd7 {[%emt 0:01:11][%mdl 8192]} (30... Re1+ $1 $19 {[%mdl 512] and all is fine.} 31. Rxe1 Qxd3) 31. b5 {[%emt 0:00:59]} (31. Bg3 $18 {is more deadly. Hoping for Rc7.} Rc6 32. Rc5 Rxc5 33. bxc5) 31... axb5 $16 {[%emt 0:01:41]} 32. Qd4 {[%emt 0:00:31]} Ra8 {[%emt 0:01:57]} 33. Bg3 $1 {[%emt 0:02:37][%cal Bc7g3,Bg3f2,Bf2d4][%mdl 32] Rc7 is the strong threat.} Ra4 {[%emt 0:03:38] [#]} (33... Rc6 $16) 34. Qc5 $2 {[%emt 0:00:01]} ({Only move:} 34. Qxd5 $1 $18 {[%mdl 512]} Qxd5 35. Rxd5) 34... Rc4 $14 {[%emt 0:00:13]} 35. Rxc4 {[%emt 0:00:08]} bxc4 {[%emt 0:00:06]} 36. Bf2 {[%emt 0:00:15][%cal Oc5c4] Threatens to win with Qxc4!} Qa4 {[%emt 0:01:43]} 37. Ra1 {[%emt 0:01:13]} h6 {[%emt 0:01:52]} 38. Qc7 {[%emt 0:00:19]} Qa8 {[%emt 0:01:11]} 39. Bd4 {[%emt 0:00:31]} Rc6 {[%emt 0:07:10]} 40. Qg3 {[%emt 0:00:00]} ({White should play} 40. Qe5 $1 $14 Qf8 41. a4 (41. Qxd5 c3 $11)) 40... Rg6 {[%emt 0:00:00]} (40... f6 $11 {keeps the balance.}) 41. Qc7 {[%emt 0:05:14] aiming for Re1.} Rc6 $1 {[%emt 0:05:50]} 42. Qg3 {[%emt 0:09:24][%csl Gd4][%cal Rg3g7]} (42. Qe5 $5 {[%cal Re5g7]} Qf8 43. a4 $14 (43. Qxd5 c3 $11)) 42... Rg6 {[%emt 0:00:11]} 43. Qc7 {[%emt 0:04:01]} (43. Qe5 $16) 43... Rc6 $1 {[%emt 0:35:10] White really could win this.  Weighted Error Value: White=0.47/Black=0.43} 1/2-1/2

[Event "Mongolian Championship Open 2022"]
[Site "Chingis Khentii"]
[Date "2022.05.20"]
[Round "8.3"]
[White "Boldoo, Erdenepurev"]
[Black "Agibileg, Uurtsaikh"]
[Result "0-1"]
[ECO "E97"]
[WhiteElo "2371"]
[BlackElo "2440"]
[Annotator "TA"]
[PlyCount "76"]
[EventDate "2022.05.12"]
[EventType "tourn"]
[EventCountry "MGL"]
[SourceTitle "playchess.com"]
[Source "ChessBase"]
[SourceQuality "1"]
[TimeControl "40/5400+30:1800+30"]

{[%evp 24,76,20,22,15,22,35,51,73,66,69,61,55,-14,-16,-41,-54,-59,-26,-15,-24,-112,-89,-119,-112,-105,-92,-91,-36,-173,-162,-143,-164,-164,-158,-250,-242,-370,-362,-362,-335,-579,-507,-1168,-1212,-1191,-1095,-1210,-1189,-29983,-29984,-29984,-29985,-29984,-29985]} 1. d4 {[%emt 0:00:01]} Nf6 {[%emt 0:00:20]} 2. c4 {[%emt 0:00:19]} g6 {[%emt 0:00:10]} 3. Nc3 {[%emt 0:00:07]} Bg7 {[%emt 0:00:07]} 4. e4 {[%emt 0:00:03]} d6 {[%emt 0:00:11]} 5. Nf3 {[%emt 0:00:06]} O-O {[%emt 0:00:18]} 6. Be2 {[%emt 0:00:06]} e5 {[%emt 0:00:23]} 7. O-O {[%emt 0:00:10]} Nc6 {[%emt 0:00:12]} 8. d5 {[%emt 0:00:01]} Ne7 {[%emt 0:00:25]} 9. Nd2 {[%emt 0:00:06]} a5 {[%emt 0:00:14]} 10. a3 {[%emt 0:00:13]} Nd7 {[%emt 0:00:19]} 11. Rb1 {[%emt 0:00:59]} f5 {[%emt 0:01:53]} 12. b4 {[%emt 0:00:21]} Kh8 {[%emt 0:00:08]} 13. Nb3 {[%emt 0:01:05]} axb4 {[%emt 0:02:39] E97: King's Indian: Classical Main Line (6...e5 7 0-0 Nc6): 8 Be3 and 8 d5 Ne7, not 9 Ne1.} 14. axb4 {[%emt 0:00:02]} Nf6 {[%emt 0:00:10]} 15. f3 {[%emt 0:01:51]} f4 {[%emt 0:01:28] White is slightly better.} 16. c5 {[%emt 0:00:21]} h5 {[%emt 0:00:24] [#]} 17. b5 $146 {[%emt 0:00:36][%cal Ob5b6]} ({Predecessor:} 17. Bd2 g5 18. Be1 Ng6 19. b5 b6 20. c6 g4 21. Ra1 Rxa1 22. Qxa1 Bh6 23. Nd1 {0-1 (40) Vachier Lagrave,M (2778)-Grischuk,A (2777) Chess.com INT 2020}) 17... b6 {[%emt 0:01:33]} 18. c6 {[%emt 0:01:51]} ({White should try} 18. cxd6 $14 cxd6 19. Bb2) 18... g5 $11 {[%emt 0:14:36][%cal Bg6g5,Bg5g4][%mdl 32]} 19. Kf2 {[%emt 0:00:13]} g4 {[%emt 0:03:37]} 20. Ke1 {[%emt 0:00:10]} Bh6 {[%emt 0:00:10]} (20... Ng6 $5 {[%cal Rg6h4]}) 21. Kd2 {[%emt 0:02:55]} h4 {[%emt 0:01:01]} 22. h3 {[%emt 0:00:33]} (22. Rg1 $11 {keeps the balance.}) 22... gxh3 $17 {[%emt 0:02:56]} 23. gxh3 {[%emt 0:00:27]} Rg8 $1 {[%emt 0:03:30]} ({Don't play} 23... Bxh3 $6 24. Rh1 Qc8 25. Qe1 $11) 24. Rh1 {[%emt 0:00:50]} Rg2 {[%emt 0:04:02]} 25. Kc2 {[%emt 0:02:55] [#]} Qg8 $1 {[%emt 0:03:55][%cal Oe7d5] White must now prevent ...Nexd5!} 26. Bd2 {[%emt 0:01:27] [#] Now White is beyond hope.} ({Only move:} 26. Kb2 $1 $15) 26... Nexd5 $1 $19 {[%emt 0:00:29][%mdl 512]} 27. exd5 {[%emt 0:01:03]} Bf5+ {[%emt 0:00:22]} 28. Kb2 {[%emt 0:00:30]} Bxb1 {[%emt 0:00:15]} (28... Nxd5 29. Nxd5 Qxd5 30. Rg1 Rxg1 31. Qxg1 $17) 29. Qxb1 {[%emt 0:04:32]} (29. Kxb1 $17 Nxd5 30. Nc1) 29... Nxd5 {[%emt 0:00:34]} 30. Qe4 {[%emt 0:02:02]} (30. Qd3 {is a better defense.} Nxc3 31. Bxc3) 30... Nxc3 {[%emt 0:04:33]} 31. Bxc3 {[%emt 0:00:10] [#]} Bg7 $1 {[%emt 0:00:07] aiming for ...d5. The board is on fire.} 32. Nc1 $2 {[%emt 0:05:10]} (32. Re1) 32... d5 {[%emt 0:00:54][%cal Bd6d5,Bd5d4,Bd4d3][%mdl 32]} 33. Qd3 {[%emt 0:00:04]} (33. Qf5 $142 d4 34. Qh5+ Qh7 35. Qxh7+ Kxh7 36. Bxd4 exd4 37. Kb3) 33... d4 {[%emt 0:02:43]} 34. Bd2 {[%emt 0:02:35]} e4 {[%emt 0:01:25]} 35. fxe4 {[%emt 0:00:34] [#]} Rxe2 $1 {[%emt 0:01:27][%mdl 576] Deflection} 36. Nxe2 {[%emt 0:00:23]} (36. Kb1 Rg2) 36... Qa2+ {[%emt 0:00:10] Black mates.} 37. Kc1 {[%emt 0:00:06]} Qa1+ {[%emt 0:00:13][%mdl 64] Skewer} 38. Qb1 {[%emt 0:00:13]} d3 {[%emt 0:00:09] Weighted Error Value: White=0.90/Black=0.03 (flawless)} 0-1

[Event "Mongolian Championship Open 2022"]
[Site "Chingis Khentii"]
[Date "2022.05.20"]
[Round "8.4"]
[White "Gan-Erdene, Sugar"]
[Black "Munkhgal, Gombosuren"]
[Result "1/2-1/2"]
[ECO "C18"]
[WhiteElo "2419"]
[BlackElo "2502"]
[Annotator "TA"]
[PlyCount "122"]
[EventDate "2022.05.12"]
[EventType "tourn"]
[EventCountry "MGL"]
[SourceTitle "playchess.com"]
[Source "ChessBase"]
[SourceQuality "1"]
[TimeControl "40/5400+30:1800+30"]

{[%evp 19,122,-2,0,-2,0,0,-8,0,0,0,0,-6,-6,-17,-9,-5,30,29,43,43,99,91,195,189,170,65,65,65,68,74,74,67,67,55,60,0,67,67,88,83,95,109,103,91,238,231,225,218,245,240,240,238,247,238,251,246,241,227,241,241,300,241,241,0,287,259,287,209,283,283,283,283,283,283,283,283,283,283,283,283,283,283,283,283,283,283,283,283,283,283,283,283,283,283,283,283,280,220,220,220,220,220,220,177,144]} 1. e4 {[%emt 0:00:03]} e6 {[%emt 0:00:15]} 2. d4 {[%emt 0:00:05]} d5 {[%emt 0:00:03]} 3. Nc3 {[%emt 0:00:12]} Bb4 {[%emt 0:00:14]} 4. e5 {[%emt 0:00:19]} c5 {[%emt 0:00:06]} 5. a3 {[%emt 0:00:14]} Bxc3+ {[%emt 0:00:05]} 6. bxc3 {[%emt 0:00:05]} Ne7 {[%emt 0:00:03]} 7. Qg4 {[%emt 0:00:33]} O-O {[%emt 0:00:38]} 8. Bd3 {[%emt 0:03:06]} f5 {[%emt 0:02:39]} 9. exf6 {[%emt 0:03:03]} Rxf6 {[%emt 0:00:28]} 10. Qh5 {[%emt 0:21:53]} h6 $1 {[%emt 0:01:10] 10...h6 is better than 10...g6.} 11. Nf3 {[%emt 0:00:55] C18: French: 3 Nc3 Bb4: Main line: 7 h4 and 7 Qg4.} c4 {[%emt 0:00:21]} 12. Be2 {[%emt 0:00:39]} Nbc6 {[%emt 0:01:30]} 13. O-O {[%emt 0:01:25] The position is equal.} Bd7 {[%emt 0:00:34]} 14. Ne5 {[%emt 0:04:17]} Rf5 {[%emt 0:05:41]} 15. Qg4 {[%emt 0:06:16] [#] Bxh6 is the strong threat.} Nxe5 {[%emt 0:07:33]} 16. dxe5 {[%emt 0:00:05]} Kh7 {[%emt 0:01:16]} 17. Qg3 {[%emt 0:02:39] [#]} Ng6 $146 {[%emt 0:10:54]} ({Predecessor:} 17... Ba4 18. Ra2 Rf8 19. f4 Rc8 20. Qh3 d4 21. Bxc4 Rxc4 22. Qd3+ Nf5 23. Qxc4 Bc6 {1-0 (49) Melkumyan,H (2663)-Hevia Alejano,C (2467) Chess.com INT 2020}) 18. f4 {[%emt 0:06:29]} Qb6+ {[%emt 0:28:27]} 19. Be3 {[%emt 0:01:15]} Qb2 {[%emt 0:03:05]} (19... Qa5 $14) 20. Bg4 $16 {[%emt 0:00:59]} Rff8 {[%emt 0:05:06]} (20... Qxc2 $16 21. Rac1 (21. Bxf5 Qxf5 22. a4 Rf8 $16) 21... Qa4 22. Bxf5 exf5) 21. Rab1 $18 {[%emt 0:28:38]} Qxc3 {[%emt 0:07:22]} 22. Bc5 {[%emt 0:10:42] A strong pair of Bishops.} ({White should try} 22. Rxb7 $18 Bc6 23. Rc7 (23. Rxa7 d4 $15)) 22... Qxg3 $14 {[%emt 0:01:09]} 23. hxg3 {[%emt 0:00:06]} b6 {[%emt 0:00:47]} 24. Bxf8 {[%emt 0:00:05] White is more active.} Rxf8 {[%emt 0:00:02]} 25. c3 {[%emt 0:01:34]} Ne7 {[%emt 0:00:44]} 26. Bd1 {[%emt 0:00:07]} Be8 {[%emt 0:00:28]} 27. Bg4 {[%emt 0:01:17]} Bd7 {[%emt 0:02:33]} 28. Kf2 {[%emt 0:01:54]} Nc6 {[%emt 0:00:44]} 29. Ke3 {[%emt 0:00:18]} Na5 {[%emt 0:00:58]} 30. Rfd1 {[%emt 0:00:50][%cal Od1d5]} Bc8 {[%emt 0:01:56]} 31. Bf3 {[%emt 0:03:27]} g6 {[%emt 0:01:22]} (31... Nb7 $16 {was called for.}) 32. g4 $18 {[%emt 0:00:21]} Kg7 {[%emt 0:00:09]} 33. Rh1 {[%emt 0:00:31]} Nb7 {[%emt 0:03:22]} 34. Rh2 {[%emt 0:01:05] And now Rbh1 would win.} Nd8 {[%emt 0:00:10]} 35. Rbh1 {[%emt 0:00:10]} Nf7 {[%emt 0:00:19]} 36. Kd4 {[%emt 0:00:31]} Bd7 {[%emt 0:01:13]} 37. Bd1 {[%emt 0:00:30]} Rg8 {[%emt 0:07:02]} 38. Bc2 {[%emt 0:00:31]} Kf8 {[%emt 0:00:21]} 39. g3 {[%emt 0:00:56]} Be8 {[%emt 0:01:00]} 40. Rh3 {[%emt 0:00:00]} Bd7 {[%emt 0:00:00]} 41. R3h2 {[%emt 0:08:20]} Be8 $1 {[%emt 0:01:01]} 42. a4 {[%emt 0:02:53]} h5 {[%emt 0:01:14]} 43. Rf1 {[%emt 0:09:03]} ({Resist} 43. gxh5 $6 gxh5 44. Rh3 (44. Rxh5 Rxg3 45. a5 Bd7 $16) 44... Ke7 $16) 43... Nh6 {[%emt 0:02:56] [#]} 44. g5 {[%emt 0:01:11]} Nf7 {[%emt 0:06:21]} 45. g4 {[%emt 0:00:24]} hxg4 {[%emt 0:00:07]} 46. Rg1 {[%emt 0:00:20]} Nd8 {[%emt 0:00:28]} 47. Rxg4 {[%emt 0:00:52]} Nc6+ {[%emt 0:00:06]} 48. Ke3 {[%emt 0:00:04]} Ne7 {[%emt 0:00:18]} 49. Rgh4 {[%emt 0:00:31]} a5 {[%emt 0:02:29]} 50. Rh1 {[%emt 0:00:29]} Bf7 {[%emt 0:00:45]} 51. Rb1 {[%emt 0:01:07]} Nc8 {[%emt 0:00:14]} 52. Rh6 {[%emt 0:02:47]} Kg7 {[%emt 0:00:26]} 53. Rbh1 {[%emt 0:00:56]} Ne7 {[%emt 0:01:29]} 54. Rh7+ {[%emt 0:00:40]} Kf8 {[%emt 0:00:01]} 55. Rb1 {[%emt 0:00:40]} Nc8 {[%emt 0:00:01]} 56. Rb2 {[%emt 0:00:39]} Rg7 {[%emt 0:01:20]} 57. Rh8+ {[%emt 0:00:49]} Rg8 {[%emt 0:00:08]} 58. Rh1 {[%emt 0:00:34]} Kg7 {[%emt 0:00:16] White is clearly better.} 59. Bd1 {[%emt 0:02:57]} Rh8 {[%emt 0:00:18]} 60. Rxh8 {[%emt 0:01:02]} Kxh8 {[%emt 0:00:01]} 61. f5 {[%emt 0:00:40]} gxf5 {[%emt 0:29:12] Weighted Error Value: White=0.15 (very precise) /Black=0.11 (very precise)} 1/2-1/2